[Event "Late-Titled-Tuesday-Blitz-April-30-2024"]
[Site "Chess.com"]
[Date "2024.04.30"]
[Round "5"]
[White "OparinGrigoriy"]
[Black "attack2mateU"]
[Result "1-0"]
[WhiteElo "2984"]
[BlackElo "2706"]
[TimeControl "180+1"]
[EndTime "14:55:30 PDT"]
[Termination "OparinGrigoriy won by resignation"]

1. Nc3 {[%clk 0:02:47.2]} 1... c5 {[%clk 0:02:59.7]} 2. e4 {[%clk 0:02:47.3]}
2... d6 {[%clk 0:02:59.9]} 3. Nf3 {[%clk 0:02:48]} 3... Nf6 {[%clk 0:02:59.9]}
4. a4 {[%clk 0:02:47.5]} 4... Nc6 {[%clk 0:02:40.3]} 5. Bb5 {[%clk 0:02:47.6]}
5... e5 {[%clk 0:02:28.6]} 6. O-O {[%clk 0:02:46.8]} 6... g6 {[%clk 0:02:25.6]}
7. Nd5 {[%clk 0:02:43]} 7... Nxd5 {[%clk 0:02:14.8]} 8. exd5 {[%clk 0:02:42.8]}
8... a6 {[%clk 0:02:15.5]} 9. Bxc6+ {[%clk 0:02:34.1]} 9... bxc6 {[%clk
0:02:15.3]} 10. dxc6 {[%clk 0:02:35]} 10... Bg7 {[%clk 0:02:02.2]} 11. Re1
{[%clk 0:02:35.3]} 11... O-O {[%clk 0:02:01.3]} 12. c3 {[%clk 0:02:35.8]} 12...
Bf5 {[%clk 0:01:33.1]} 13. d4 {[%clk 0:02:35.5]} 13... e4 {[%clk 0:01:33.3]} 14.
Nd2 {[%clk 0:02:25.8]} 14... cxd4 {[%clk 0:01:30]} 15. Nxe4 {[%clk 0:02:23.1]}
15... d5 {[%clk 0:01:29.6]} 16. Ng3 {[%clk 0:02:22.1]} 16... dxc3 {[%clk
0:01:28.4]} 17. Nxf5 {[%clk 0:02:15.9]} 17... gxf5 {[%clk 0:01:28.4]} 18. bxc3
{[%clk 0:02:11.3]} 18... Bxc3 {[%clk 0:01:29.3]} 19. Bh6 {[%clk 0:02:11.1]}
19... Qf6 {[%clk 0:01:03.4]} 20. Bxf8 {[%clk 0:02:10.2]} 20... Rxf8 {[%clk
0:01:04.3]} 21. Rc1 {[%clk 0:02:06.2]} 21... Bxe1 {[%clk 0:01:03.9]} 22. Qxe1
{[%clk 0:02:07.1]} 22... Rc8 {[%clk 0:00:58.5]} 23. h3 {[%clk 0:02:04]} 23...
Kg7 {[%clk 0:00:57.4]} 24. Rc5 {[%clk 0:01:52.8]} 24... Rxc6 {[%clk 0:00:52.3]}
25. Rxd5 {[%clk 0:01:52.8]} 25... f4 {[%clk 0:00:27.4]} 26. Qe4 {[%clk
0:01:47.6]} 26... Re6 {[%clk 0:00:22.7]} 27. Qf3 {[%clk 0:01:44.6]} 27... Qa1+
{[%clk 0:00:21.3]} 28. Kh2 {[%clk 0:01:45]} 28... Qxa4 {[%clk 0:00:21.9]} 29.
Qc3+ {[%clk 0:01:36.5]} 29... Kg6 {[%clk 0:00:20.6]} 30. h4 {[%clk 0:01:34.7]}
30... h6 {[%clk 0:00:19]} 31. Qh8 {[%clk 0:01:22.8]} 1-0

[Event "Late-Titled-Tuesday-Blitz-April-30-2024"]
[Site "Chess.com"]
[Date "2024.04.30"]
[Round "5"]
[White "margarita_2703"]
[Black "mortngabriel"]
[Result "1-0"]
[WhiteElo "2330"]
[BlackElo "2501"]
[TimeControl "180+1"]
[EndTime "14:55:32 PDT"]
[Termination "margarita_2703 won by resignation"]

1. e4 {[%clk 0:02:47.6]} 1... c5 {[%clk 0:02:59.9]} 2. Nf3 {[%clk 0:02:43]} 2...
a6 {[%clk 0:02:59.9]} 3. c3 {[%clk 0:02:42.9]} 3... d5 {[%clk 0:02:59.9]} 4.
exd5 {[%clk 0:02:43.8]} 4... Qxd5 {[%clk 0:03:00.8]} 5. d4 {[%clk 0:02:43.8]}
5... e6 {[%clk 0:03:01.5]} 6. Be3 {[%clk 0:02:43.5]} 6... Nd7 {[%clk 0:03:00.6]}
7. c4 {[%clk 0:02:42.1]} 7... Qd6 {[%clk 0:02:40]} 8. dxc5 {[%clk 0:02:39.4]}
8... Qxd1+ {[%clk 0:02:39]} 9. Kxd1 {[%clk 0:02:40.3]} 9... Bxc5 {[%clk
0:02:37.6]} 10. Bxc5 {[%clk 0:02:39.8]} 10... Nxc5 {[%clk 0:02:38.5]} 11. Nc3
{[%clk 0:02:39.9]} 11... Nf6 {[%clk 0:02:35.5]} 12. Kc1 {[%clk 0:02:36.8]} 12...
b6 {[%clk 0:02:25.3]} 13. Nd2 {[%clk 0:02:36.3]} 13... Bb7 {[%clk 0:02:23.2]}
14. f3 {[%clk 0:02:36.9]} 14... Ke7 {[%clk 0:02:16.6]} 15. Kc2 {[%clk
0:02:37.4]} 15... Rhd8 {[%clk 0:02:15.3]} 16. Nb3 {[%clk 0:02:38]} 16... Nxb3
{[%clk 0:01:47.3]} 17. axb3 {[%clk 0:02:38.9]} 17... Rd6 {[%clk 0:01:39.8]} 18.
Bd3 {[%clk 0:02:37.9]} 18... Rad8 {[%clk 0:01:38.1]} 19. Rhd1 {[%clk 0:02:38.8]}
19... g5 {[%clk 0:01:30.5]} 20. Be2 {[%clk 0:02:34.4]} 20... h5 {[%clk
0:01:27.4]} 21. Rxd6 {[%clk 0:02:33.9]} 21... Rxd6 {[%clk 0:01:27.1]} 22. h3
{[%clk 0:02:34.3]} 22... h4 {[%clk 0:01:26.6]} 23. Bd3 {[%clk 0:02:32.7]} 23...
Rd4 {[%clk 0:01:02.6]} 24. Ne4 {[%clk 0:02:31.8]} 24... Nxe4 {[%clk 0:01:00.1]}
25. Bxe4 {[%clk 0:02:32.7]} 25... Bxe4+ {[%clk 0:00:59.4]} 26. fxe4 {[%clk
0:02:33.6]} 26... a5 {[%clk 0:00:58.8]} 27. Re1 {[%clk 0:02:30.8]} 27... e5
{[%clk 0:00:30.5]} 28. Kc3 {[%clk 0:02:29.9]} 28... Kf6 {[%clk 0:00:27.6]} 29.
b4 {[%clk 0:02:30]} 29... axb4+ {[%clk 0:00:27.4]} 30. Kxb4 {[%clk 0:02:30.9]}
30... Rd2 {[%clk 0:00:28.1]} 31. Rf1+ {[%clk 0:02:24.9]} 31... Ke6 {[%clk
0:00:27.4]} 32. Rb1 {[%clk 0:02:20.9]} 32... Rxg2 {[%clk 0:00:27.2]} 33. Kb5
{[%clk 0:02:21.8]} 33... g4 {[%clk 0:00:22.8]} 34. hxg4 {[%clk 0:02:18.1]} 34...
h3 {[%clk 0:00:23.1]} 35. b4 {[%clk 0:02:14.6]} 35... Rxg4 {[%clk 0:00:16.6]}
36. Kxb6 {[%clk 0:02:13.4]} 36... Rxe4 {[%clk 0:00:12]} 37. c5 {[%clk
0:02:12.2]} 37... f5 {[%clk 0:00:09.9]} 38. b5 {[%clk 0:02:12.1]} 38... f4
{[%clk 0:00:09.5]} 39. c6 {[%clk 0:02:11.9]} 39... f3 {[%clk 0:00:09.9]} 40. Kc7
{[%clk 0:02:11.2]} 40... f2 {[%clk 0:00:08.9]} 41. Rf1 {[%clk 0:02:11.2]} 41...
Rf4 {[%clk 0:00:08.4]} 42. b6 {[%clk 0:02:11.2]} 42... e4 {[%clk 0:00:06.7]} 43.
b7 {[%clk 0:02:11.2]} 43... Rf8 {[%clk 0:00:05.7]} 44. b8=Q {[%clk 0:02:08.5]}
44... Rxb8 {[%clk 0:00:05.4]} 45. Kxb8 {[%clk 0:02:09.4]} 45... e3 {[%clk
0:00:06]} 46. c7 {[%clk 0:02:09.7]} 46... e2 {[%clk 0:00:04.7]} 47. c8=Q+ {[%clk
0:02:10.6]} 1-0

[Event "Late-Titled-Tuesday-Blitz-April-30-2024"]
[Site "Chess.com"]
[Date "2024.04.30"]
[Round "5"]
[White "HonzaVykouk"]
[Black "english_player_89"]
[Result "1-0"]
[WhiteElo "2759"]
[BlackElo "2538"]
[TimeControl "180+1"]
[EndTime "14:55:41 PDT"]
[Termination "HonzaVykouk won by resignation"]

1. c4 {[%clk 0:03:00.9]} 1... e5 {[%clk 0:02:59.6]} 2. d3 {[%clk 0:03:00.7]}
2... Nf6 {[%clk 0:02:59.2]} 3. Nf3 {[%clk 0:03:00.7]} 3... Nc6 {[%clk
0:02:57.4]} 4. a3 {[%clk 0:03:00.9]} 4... e4 {[%clk 0:02:54.4]} 5. dxe4 {[%clk
0:03:00.5]} 5... Nxe4 {[%clk 0:02:55.3]} 6. Nbd2 {[%clk 0:03:01]} 6... Nxd2
{[%clk 0:02:54.6]} 7. Bxd2 {[%clk 0:03:00.6]} 7... Be7 {[%clk 0:02:53.5]} 8. e3
{[%clk 0:03:01]} 8... Bf6 {[%clk 0:02:53.4]} 9. Qc2 {[%clk 0:03:00.6]} 9... O-O
{[%clk 0:02:52.6]} 10. Bd3 {[%clk 0:03:01.2]} 10... g6 {[%clk 0:02:52.6]} 11. h4
{[%clk 0:03:01.4]} 11... d6 {[%clk 0:02:33.1]} 12. h5 {[%clk 0:03:01.2]} 12...
Qe8 {[%clk 0:02:32.5]} 13. hxg6 {[%clk 0:03:00.5]} 13... fxg6 {[%clk 0:02:27.3]}
14. O-O-O {[%clk 0:02:58.8]} 14... Bg4 {[%clk 0:02:16.5]} 15. Kb1 {[%clk
0:02:58.2]} 15... a5 {[%clk 0:02:10.5]} 16. Rh2 {[%clk 0:02:53.7]} 16... Rd8
{[%clk 0:02:03.5]} 17. Rdh1 {[%clk 0:02:53.6]} 17... Rd7 {[%clk 0:01:51.9]} 18.
Bc3 {[%clk 0:02:45.6]} 18... Bxc3 {[%clk 0:01:50]} 19. Qxc3 {[%clk 0:02:46.5]}
19... Ne5 {[%clk 0:01:20.7]} 20. Nxe5 {[%clk 0:02:34.9]} 20... Qxe5 {[%clk
0:01:01.9]} 21. Qc2 {[%clk 0:02:31.7]} 21... Bf5 {[%clk 0:00:58.6]} 22. e4
{[%clk 0:02:26.8]} 22... Be6 {[%clk 0:00:55.7]} 23. g3 {[%clk 0:02:26.7]} 23...
Rg7 {[%clk 0:00:30.3]} 24. f4 {[%clk 0:02:26.6]} 24... Qd4 {[%clk 0:00:30.5]}
25. Ka1 {[%clk 0:02:14]} 25... Bg4 {[%clk 0:00:27.4]} 26. f5 {[%clk 0:01:59.4]}
26... Bf3 {[%clk 0:00:20.4]} 27. Rf1 {[%clk 0:01:58.6]} 27... Qe3 {[%clk
0:00:15.4]} 28. Rhf2 {[%clk 0:01:55.3]} 28... Bg4 {[%clk 0:00:13.4]} 29. fxg6
{[%clk 0:01:51]} 29... Rxf2 {[%clk 0:00:13.5]} 30. gxh7+ {[%clk 0:01:51.7]}
30... Rxh7 {[%clk 0:00:13.4]} 31. Rxf2 {[%clk 0:01:48.9]} 31... Rh1+ {[%clk
0:00:13.3]} 32. Ka2 {[%clk 0:01:49]} 32... Be6 {[%clk 0:00:13.2]} 33. e5 {[%clk
0:01:45.9]} 33... d5 {[%clk 0:00:08.7]} 34. Bf5 {[%clk 0:01:42]} 34... Bf7
{[%clk 0:00:05.4]} 35. e6 {[%clk 0:01:41.6]} 35... Bxe6 {[%clk 0:00:05.8]} 36.
Bxe6+ {[%clk 0:01:40.7]} 36... Qxe6 {[%clk 0:00:06.4]} 37. Qd2 {[%clk
0:01:34.6]} 37... Qg6 {[%clk 0:00:03.1]} 38. Qxd5+ {[%clk 0:01:33.9]} 38... Kh7
{[%clk 0:00:03.5]} 39. Qxh1+ {[%clk 0:01:34]} 1-0

[Event "Late-Titled-Tuesday-Blitz-April-30-2024"]
[Site "Chess.com"]
[Date "2024.04.30"]
[Round "5"]
[White "SergioMoralesG"]
[Black "Yerkinio"]
[Result "0-1"]
[WhiteElo "2464"]
[BlackElo "2661"]
[TimeControl "180+1"]
[EndTime "14:55:52 PDT"]
[Termination "Yerkinio won by resignation"]

1. d4 {[%clk 0:02:00.1]} 1... Nf6 {[%clk 0:02:59.1]} 2. c4 {[%clk 0:02:00.1]}
2... e6 {[%clk 0:02:59.7]} 3. Nf3 {[%clk 0:02:00.6]} 3... b6 {[%clk 0:02:59]} 4.
g3 {[%clk 0:02:00.3]} 4... Ba6 {[%clk 0:02:57.4]} 5. b3 {[%clk 0:02:00.9]} 5...
Bb4+ {[%clk 0:02:56.4]} 6. Bd2 {[%clk 0:01:59.7]} 6... Be7 {[%clk 0:02:56.6]} 7.
Nc3 {[%clk 0:01:59]} 7... d5 {[%clk 0:02:51.3]} 8. Bg2 {[%clk 0:01:59.5]} 8...
c6 {[%clk 0:02:50.8]} 9. Ne5 {[%clk 0:01:52.8]} 9... O-O {[%clk 0:02:45.9]} 10.
O-O {[%clk 0:01:51.4]} 10... Nfd7 {[%clk 0:02:40.9]} 11. Nxd7 {[%clk 0:01:49.4]}
11... Nxd7 {[%clk 0:02:39.6]} 12. cxd5 {[%clk 0:01:39.7]} 12... cxd5 {[%clk
0:02:36]} 13. Qc1 {[%clk 0:01:24.8]} 13... Rc8 {[%clk 0:02:34.8]} 14. Qb2 {[%clk
0:01:23.8]} 14... Bb4 {[%clk 0:02:26]} 15. Rfc1 {[%clk 0:01:20.1]} 15... Qe7
{[%clk 0:02:14.6]} 16. a3 {[%clk 0:01:18.8]} 16... Bd6 {[%clk 0:02:15.3]} 17. e4
{[%clk 0:01:03]} 17... dxe4 {[%clk 0:02:12.4]} 18. Nxe4 {[%clk 0:01:03.1]} 18...
Rxc1+ {[%clk 0:01:48.9]} 19. Rxc1 {[%clk 0:01:00.7]} 19... Bxa3 {[%clk
0:01:48.5]} 20. Qa2 {[%clk 0:00:30.8]} 20... Bxc1 {[%clk 0:01:48.3]} 21. Bxc1
{[%clk 0:00:31.7]} 21... Bb7 {[%clk 0:01:31.6]} 22. Ba3 {[%clk 0:00:30.5]} 22...
Qd8 {[%clk 0:01:19.3]} 23. Bxf8 {[%clk 0:00:30.2]} 23... Nxf8 {[%clk 0:01:20.2]}
24. Qa3 {[%clk 0:00:03.5]} 24... Bxe4 {[%clk 0:01:18.2]} 25. Bxe4 {[%clk
0:00:03]} 25... Qxd4 {[%clk 0:01:18.8]} 26. Bg2 {[%clk 0:00:02.6]} 26... a5
{[%clk 0:01:11.1]} 27. h4 {[%clk 0:00:03]} 27... Qb4 {[%clk 0:01:09.1]} 28. Qb2
{[%clk 0:00:02.8]} 28... a4 {[%clk 0:01:07.9]} 29. Bf3 {[%clk 0:00:02.1]} 29...
Qxb3 {[%clk 0:01:06]} 0-1

[Event "Late-Titled-Tuesday-Blitz-April-30-2024"]
[Site "Chess.com"]
[Date "2024.04.30"]
[Round "5"]
[White "AlainBruxelles"]
[Black "Bala-Afiada"]
[Result "1-0"]
[WhiteElo "2240"]
[BlackElo "1998"]
[TimeControl "180+1"]
[EndTime "14:55:52 PDT"]
[Termination "AlainBruxelles won on time"]

1. e4 {[%clk 0:03:00.9]} 1... c5 {[%clk 0:02:57.9]} 2. Nf3 {[%clk 0:03:00.1]}
2... Nc6 {[%clk 0:02:46.9]} 3. Nc3 {[%clk 0:02:58.7]} 3... d6 {[%clk 0:02:43.9]}
4. d4 {[%clk 0:02:57.9]} 4... cxd4 {[%clk 0:02:43.8]} 5. Nxd4 {[%clk 0:02:58.6]}
5... Nf6 {[%clk 0:02:44.5]} 6. Bg5 {[%clk 0:02:57.5]} 6... e6 {[%clk 0:02:44.4]}
7. Qd2 {[%clk 0:02:55.3]} 7... Be7 {[%clk 0:02:45.1]} 8. O-O-O {[%clk
0:02:55.3]} 8... Nxd4 {[%clk 0:02:43.9]} 9. Qxd4 {[%clk 0:02:53]} 9... O-O
{[%clk 0:02:44.7]} 10. Kb1 {[%clk 0:02:46.4]} 10... Qa5 {[%clk 0:02:41.1]} 11.
f4 {[%clk 0:02:39.3]} 11... Bd7 {[%clk 0:02:17.6]} 12. Bxf6 {[%clk 0:02:32.9]}
12... Bxf6 {[%clk 0:02:15.5]} 13. Qxd6 {[%clk 0:02:33]} 13... Bxc3 {[%clk
0:02:03.8]} 14. bxc3 {[%clk 0:02:19.8]} 14... Rfd8 {[%clk 0:01:38.3]} 15. Qb4
{[%clk 0:02:17.3]} 15... Qc7 {[%clk 0:01:32.2]} 16. g3 {[%clk 0:02:13.4]} 16...
a5 {[%clk 0:01:28.1]} 17. Qc4 {[%clk 0:02:07.5]} 17... Qxc4 {[%clk 0:01:18.8]}
18. Bxc4 {[%clk 0:02:06.9]} 18... Rac8 {[%clk 0:01:19.7]} 19. Be2 {[%clk
0:01:59]} 19... Rxc3 {[%clk 0:01:05.8]} 20. Rd6 {[%clk 0:01:54.4]} 20... Kf8
{[%clk 0:00:28.2]} 21. Rhd1 {[%clk 0:01:53.1]} 21... Ke7 {[%clk 0:00:28.4]} 22.
Bb5 {[%clk 0:01:47.7]} 22... Rc7 {[%clk 0:00:25.8]} 23. e5 {[%clk 0:01:37]}
23... f6 {[%clk 0:00:24.6]} 24. Kb2 {[%clk 0:01:36.1]} 24... fxe5 {[%clk
0:00:23.1]} 25. fxe5 {[%clk 0:01:36.8]} 25... b6 {[%clk 0:00:06.9]} 26. c4
{[%clk 0:01:32.9]} 26... h6 {[%clk 0:00:05.2]} 27. a4 {[%clk 0:01:31.4]} 27...
g5 {[%clk 0:00:04.9]} 28. g4 {[%clk 0:01:29.5]} 28... Ra7 {[%clk 0:00:02.4]} 29.
Rxb6 {[%clk 0:01:25.2]} 29... Bxb5 {[%clk 0:00:00.9]} 30. Rxd8 {[%clk
0:01:23.9]} 30... Kxd8 {[%clk 0:00:01.3]} 31. axb5 {[%clk 0:01:21.8]} 31... Kd7
{[%clk 0:00:00.4]} 32. Rd6+ {[%clk 0:01:18.5]} 32... Ke7 {[%clk 0:00:00.8]} 33.
c5 {[%clk 0:01:19.1]} 33... Rb7 {[%clk 0:00:01.1]} 34. b6 {[%clk 0:01:19.1]} 1-0

[Event "Late-Titled-Tuesday-Blitz-April-30-2024"]
[Site "Chess.com"]
[Date "2024.04.30"]
[Round "5"]
[White "OIAM03"]
[Black "e4evr"]
[Result "0-1"]
[WhiteElo "1940"]
[BlackElo "2215"]
[TimeControl "180+1"]
[EndTime "14:55:52 PDT"]
[Termination "e4evr won by resignation"]

1. h3 {[%clk 0:03:00]} 1... e5 {[%clk 0:02:58.8]} 2. e4 {[%clk 0:02:56.8]} 2...
Bc5 {[%clk 0:02:59]} 3. Nf3 {[%clk 0:02:50.9]} 3... d6 {[%clk 0:02:57.9]} 4. c3
{[%clk 0:02:44.8]} 4... Nc6 {[%clk 0:02:57.1]} 5. d4 {[%clk 0:02:41.3]} 5...
exd4 {[%clk 0:02:57.1]} 6. cxd4 {[%clk 0:02:41.3]} 6... Bb4+ {[%clk 0:02:57.7]}
7. Nc3 {[%clk 0:02:41.2]} 7... Nf6 {[%clk 0:02:58.6]} 8. Bd3 {[%clk 0:02:38.5]}
8... O-O {[%clk 0:02:55]} 9. O-O {[%clk 0:02:37.4]} 9... d5 {[%clk 0:02:55.2]}
10. e5 {[%clk 0:02:35.3]} 10... Bxc3 {[%clk 0:02:52.4]} 11. bxc3 {[%clk
0:02:32]} 11... Ne4 {[%clk 0:02:51.9]} 12. Bxe4 {[%clk 0:02:01.6]} 12... dxe4
{[%clk 0:02:52.8]} 13. Ng5 {[%clk 0:01:59.7]} 13... Bf5 {[%clk 0:02:50.7]} 14.
f3 {[%clk 0:01:49.7]} 14... exf3 {[%clk 0:02:48.4]} 15. Qxf3 {[%clk 0:01:39.6]}
15... Bg6 {[%clk 0:02:46.7]} 16. Bf4 {[%clk 0:01:29.2]} 16... Qe7 {[%clk
0:02:32.8]} 17. Rae1 {[%clk 0:01:06.4]} 17... Rad8 {[%clk 0:02:19.8]} 18. d5
{[%clk 0:00:56.5]} 18... Na5 {[%clk 0:02:17.8]} 19. e6 {[%clk 0:00:48.5]} 19...
Qc5+ {[%clk 0:02:11.8]} 20. Kh1 {[%clk 0:00:34.7]} 20... Rde8 {[%clk 0:01:43.8]}
21. exf7+ {[%clk 0:00:29.8]} 21... Bxf7 {[%clk 0:01:43.6]} 22. Nxf7 {[%clk
0:00:27.7]} 22... Rxe1 {[%clk 0:01:42.5]} 23. Rxe1 {[%clk 0:00:27.6]} 23... Rxf7
{[%clk 0:01:40.1]} 24. Re8+ {[%clk 0:00:27.1]} 24... Rf8 {[%clk 0:01:40.2]} 25.
Rxf8+ {[%clk 0:00:25.4]} 25... Qxf8 {[%clk 0:01:40.5]} 26. Bxc7 {[%clk
0:00:25.2]} 26... Qxf3 {[%clk 0:01:36]} 27. gxf3 {[%clk 0:00:25.1]} 27... Nc4
{[%clk 0:01:36.6]} 28. d6 {[%clk 0:00:24.7]} 28... Ne5 {[%clk 0:01:36.7]} 29. f4
{[%clk 0:00:24.6]} 29... Nd7 {[%clk 0:01:36.9]} 30. Kg2 {[%clk 0:00:24.4]} 30...
Kf7 {[%clk 0:01:37.1]} 31. Kf3 {[%clk 0:00:24.4]} 31... Ke6 {[%clk 0:01:36.6]}
32. Ke4 {[%clk 0:00:23.4]} 32... Nf6+ {[%clk 0:01:33.4]} 33. Kd4 {[%clk
0:00:22.2]} 33... Ne8 {[%clk 0:01:31]} 34. f5+ {[%clk 0:00:20.1]} 34... Kxf5
{[%clk 0:01:21.2]} 35. d7 {[%clk 0:00:19.7]} 35... Nxc7 {[%clk 0:01:21.5]} 36.
d8=Q {[%clk 0:00:19.4]} 36... Ne6+ {[%clk 0:01:21.9]} 37. Kd5 {[%clk 0:00:16.9]}
37... Nxd8 {[%clk 0:01:22.8]} 0-1

[Event "Late-Titled-Tuesday-Blitz-April-30-2024"]
[Site "Chess.com"]
[Date "2024.04.30"]
[Round "5"]
[White "MNyuyu"]
[Black "kleber2007"]
[Result "1-0"]
[WhiteElo "2382"]
[BlackElo "2508"]
[TimeControl "180+1"]
[EndTime "14:55:54 PDT"]
[Termination "MNyuyu won by resignation"]

1. c4 {[%clk 0:03:00.9]} 1... e6 {[%clk 0:02:57.7]} 2. d4 {[%clk 0:02:59.9]}
2... d5 {[%clk 0:02:57.6]} 3. Nc3 {[%clk 0:03:00.4]} 3... Be7 {[%clk 0:02:55.4]}
4. cxd5 {[%clk 0:02:56.5]} 4... exd5 {[%clk 0:02:55.3]} 5. Bf4 {[%clk
0:02:57.1]} 5... c6 {[%clk 0:02:53]} 6. e3 {[%clk 0:02:57.1]} 6... Bf5 {[%clk
0:02:52.2]} 7. Bd3 {[%clk 0:02:56.9]} 7... Bxd3 {[%clk 0:02:52]} 8. Qxd3 {[%clk
0:02:57.8]} 8... Nd7 {[%clk 0:02:51.9]} 9. Nf3 {[%clk 0:02:58.2]} 9... Ngf6
{[%clk 0:02:51.5]} 10. O-O {[%clk 0:02:58.6]} 10... O-O {[%clk 0:02:51.3]} 11.
h3 {[%clk 0:02:58.9]} 11... Re8 {[%clk 0:02:49.4]} 12. a3 {[%clk 0:02:58.8]}
12... a5 {[%clk 0:02:48.5]} 13. Rab1 {[%clk 0:02:58]} 13... a4 {[%clk
0:02:48.5]} 14. Qc2 {[%clk 0:02:57.4]} 14... Qa5 {[%clk 0:02:43.8]} 15. Ne5
{[%clk 0:02:51.4]} 15... Nxe5 {[%clk 0:02:43.1]} 16. Bxe5 {[%clk 0:02:51.1]}
16... Nd7 {[%clk 0:02:39.2]} 17. Bg3 {[%clk 0:02:50.7]} 17... Qa6 {[%clk
0:02:34.4]} 18. Rfc1 {[%clk 0:02:47.8]} 18... Nb6 {[%clk 0:02:34]} 19. Re1
{[%clk 0:02:28.4]} 19... Nc4 {[%clk 0:02:17.1]} 20. f3 {[%clk 0:02:18]} 20...
Bg5 {[%clk 0:02:09.4]} 21. f4 {[%clk 0:02:11]} 21... Bf6 {[%clk 0:01:45.6]} 22.
Bf2 {[%clk 0:02:10.4]} 22... Nd6 {[%clk 0:01:37.1]} 23. g4 {[%clk 0:01:58.5]}
23... Ne4 {[%clk 0:01:36]} 24. Nxe4 {[%clk 0:01:57]} 24... Rxe4 {[%clk
0:01:34.3]} 25. b4 {[%clk 0:01:42.9]} 25... axb3 {[%clk 0:01:32.2]} 26. Rxb3
{[%clk 0:01:42.9]} 26... Be7 {[%clk 0:01:23.1]} 27. Reb1 {[%clk 0:01:36.1]}
27... b5 {[%clk 0:01:15.2]} 28. Rc3 {[%clk 0:01:30.9]} 28... Re6 {[%clk
0:01:13.6]} 29. f5 {[%clk 0:01:24.2]} 29... Rh6 {[%clk 0:01:09.7]} 30. Kg2
{[%clk 0:01:13.8]} 30... Bxa3 {[%clk 0:00:58.4]} 31. g5 {[%clk 0:01:08.5]} 31...
Rh5 {[%clk 0:00:56]} 32. h4 {[%clk 0:01:06.1]} 32... Rc8 {[%clk 0:00:40.8]} 33.
Qa2 {[%clk 0:00:58.8]} 33... b4 {[%clk 0:00:38.8]} 34. Rxb4 {[%clk 0:00:56.7]}
34... Ra8 {[%clk 0:00:32.7]} 35. Rxa3 {[%clk 0:00:52]} 1-0

[Event "Late-Titled-Tuesday-Blitz-April-30-2024"]
[Site "Chess.com"]
[Date "2024.04.30"]
[Round "5"]
[White "Adar_07"]
[Black "Msb2"]
[Result "0-1"]
[WhiteElo "2712"]
[BlackElo "3033"]
[TimeControl "180+1"]
[EndTime "14:55:59 PDT"]
[Termination "Msb2 won on time"]

1. e4 {[%clk 0:02:59.9]} 1... e6 {[%clk 0:03:00.3]} 2. d4 {[%clk 0:03:00.4]}
2... d5 {[%clk 0:03:01.1]} 3. exd5 {[%clk 0:03:01.2]} 3... exd5 {[%clk 0:03:02]}
4. Nf3 {[%clk 0:03:01.6]} 4... Nc6 {[%clk 0:03:02.6]} 5. c3 {[%clk 0:03:01.1]}
5... Bd6 {[%clk 0:03:02.4]} 6. Bd3 {[%clk 0:03:01.4]} 6... Nge7 {[%clk
0:03:03.1]} 7. O-O {[%clk 0:03:01]} 7... Bg4 {[%clk 0:03:03.7]} 8. Re1 {[%clk
0:02:59.9]} 8... Qd7 {[%clk 0:03:04.2]} 9. Nbd2 {[%clk 0:02:58.6]} 9... f6
{[%clk 0:03:04.4]} 10. Nf1 {[%clk 0:02:58.7]} 10... O-O-O {[%clk 0:02:59.6]} 11.
b4 {[%clk 0:02:51.6]} 11... Ng6 {[%clk 0:02:59.6]} 12. Ne3 {[%clk 0:02:49.6]}
12... Be6 {[%clk 0:02:58.3]} 13. b5 {[%clk 0:02:44.2]} 13... Nce7 {[%clk
0:02:58.2]} 14. c4 {[%clk 0:02:33]} 14... Bb4 {[%clk 0:02:50.5]} 15. Bd2 {[%clk
0:02:24.4]} 15... Bxd2 {[%clk 0:02:50.3]} 16. Qxd2 {[%clk 0:02:24.7]} 16... dxc4
{[%clk 0:02:45.6]} 17. Nxc4 {[%clk 0:02:22.4]} 17... Bd5 {[%clk 0:02:43.1]} 18.
Qa5 {[%clk 0:01:44.5]} 18... Bxf3 {[%clk 0:02:42]} 19. Bxg6 {[%clk 0:00:36.1]}
19... Nxg6 {[%clk 0:02:33.2]} 20. Qxa7 {[%clk 0:00:35.7]} 20... Qxd4 {[%clk
0:02:21.6]} 21. b6 {[%clk 0:00:22.5]} 21... Bd5 {[%clk 0:01:26.7]} 22. Rad1
{[%clk 0:00:11.8]} 22... Qxc4 {[%clk 0:01:16.2]} 23. Rc1 {[%clk 0:00:11.9]}
23... Rhe8 {[%clk 0:01:14.7]} 24. Rf1 {[%clk 0:00:03.7]} 24... Ne5 {[%clk
0:00:57.8]} 25. Rxc4 {[%clk 0:00:03.7]} 25... Nxc4 {[%clk 0:00:58.7]} 26. bxc7
{[%clk 0:00:01.9]} 26... Kxc7 {[%clk 0:00:59.6]} 27. Rc1 {[%clk 0:00:01.2]}
27... Re6 {[%clk 0:00:54.6]} 0-1